fUSD/lending_fUSD_20250823
["ID","MTS","AMOUNT","RATE_DAILY","PERIOD"]
[380991309,1755930657385,-1120.03,0.00013698,2]
[380991310,1755930657395,-400.0,0.00013698,2]
[380991311,1755930657405,-400.0,0.00013698,2]
[380991312,1755930657414,-400.0,0.00013698,2]
[380991313,1755930657424,-584.57,0.00013698,2]
[380991314,1755930657433,-1113.52,0.00013698,2]
[380991315,1755930657444,-400.0,0.00013698,2]
[380991316,1755930657454,-684.51,0.00013698,2]
[380991317,1755930657464,-401.23909736,0.00013698,2]
[380991318,1755930657473,-904.27,0.00013698,2]
[380991319,1755930657483,-1031.27,0.00013698,2]
[380991320,1755930657492,-660.57,0.00013698,2]
[380991321,1755930657501,-871.26,0.00013698,2]
[380991322,1755930657511,-923.07,0.00013698,2]
[380991323,1755930657520,-986.27,0.00013698,2]
[380991324,1755930657529,-400.0,0.00013698,2]
[380991325,1755930657539,-1872.47,0.00013698,2]
[380991326,1755930657548,-768.72,0.00013698,2]
[380991327,1755930657557,-400.0,0.00013698,2]
[380991328,1755930657567,-1016.95,0.00013698,2]
[380991329,1755930657576,-994.88,0.00013698,2]
[380991330,1755930657585,-400.0,0.00013698,2]
[380991331,1755930657594,-400.0,0.00013698,2]
[380991332,1755930657603,-1031.23,0.00013698,2]
[380991333,1755930657612,-571.58,0.00013698,2]
[380991334,1755930657622,-647.53,0.00013698,2]
[380991335,1755930657631,-605.11,0.00013698,2]
[380991336,1755930657641,-775.88,0.00013698,2]
[380991337,1755930657650,-400.0,0.00013698,2]
[380991338,1755930657661,-400.0,0.00013698,2]
[380991339,1755930657670,-400.0,0.00013698,2]
[380991340,1755930657679,-908.13,0.00013698,2]
[380991341,1755930657689,-405.51,0.00013698,2]
[380991342,1755930657698,-639.89,0.00013698,2]
[380991343,1755930657707,-402.71,0.00013698,2]
[380991344,1755930657717,-999.76,0.00013698,2]
[380991345,1755930657727,-400.0,0.00013698,2]
[380991346,1755930657736,-968.0,0.00013698,2]
[380991347,1755930657745,-834.9,0.00013698,2]
[380991348,1755930657755,-1449.64,0.00013698,2]
[380991349,1755930657765,-838.11,0.00013698,2]
[380991350,1755930657774,-747.31,0.00013698,2]
[380991351,1755930657783,-400.0,0.00013698,2]
[380991352,1755930657793,-400.0,0.00013698,2]
[380991353,1755930657803,-764.67,0.00013698,2]
[380991354,1755930657813,-873.94,0.00013698,2]
[380991355,1755930657822,-839.44,0.00013698,2]
[380991356,1755930657831,-402.87,0.00013698,2]
[380991357,1755930657841,-400.0,0.00013698,2]
[380991358,1755930657850,-400.0,0.00013698,2]
[380991359,1755930657860,-496.75,0.00013698,2]
[380991360,1755930657869,-400.0,0.00013698,2]
[380991361,1755930657885,-514.65,0.00013698,2]
[380991362,1755930657899,-400.0,0.00013698,2]
[380991363,1755930657910,-2296.87,0.00013698,2]
[380991364,1755930657921,-400.0,0.00013698,2]
[380991365,1755930657931,-400.0,0.00013698,2]
[380991366,1755930657940,-1231.43,0.00013698,2]
[380991367,1755930657950,-400.0,0.00013698,2]
[380991368,1755930657960,-1067.81,0.00013698,2]
[380991369,1755930657969,-1143.89,0.00013698,2]
[380991370,1755930657979,-400.0,0.00013698,2]
[380991371,1755930657988,-400.0,0.00013698,2]
[380991372,1755930657998,-1043.98,0.00013698,2]
[380991373,1755930658008,-400.0,0.00013698,2]
[380991374,1755930658018,-1047.41,0.00013698,2]
[380991375,1755930658028,-400.0,0.00013698,2]
[380991376,1755930658037,-621.01,0.00013698,2]
[380991377,1755930658047,-471.83,0.00013698,2]
[380991378,1755930658057,-400.0,0.00013698,2]
[380991379,1755930658067,-688.55,0.00013698,2]
[380991380,1755930658076,-2024.11,0.00013698,2]
[380991381,1755930658086,-702.78,0.00013698,2]
[380991382,1755930658096,-400.0,0.00013698,2]
[380991383,1755930658105,-400.0,0.00013698,2]
[380991384,1755930658115,-400.0,0.00013698,2]
[380991385,1755930658125,-1569.0,0.00013698,2]
[380991386,1755930658135,-400.0,0.00013698,2]
[380991387,1755930658145,-1557.8,0.00013698,2]
[380991388,1755930658154,-562.49,0.00013698,2]
[380991389,1755930658164,-704.74,0.00013698,2]
[380991390,1755930658174,-1015.96,0.00013698,2]
[380991391,1755930658183,-400.0,0.00013698,2]
[380991392,1755930658193,-415.83,0.00013698,2]
[380991393,1755930658203,-1619.12,0.00013698,2]
[380991394,1755930658213,-603.17,0.00013698,2]
[380991395,1755930658223,-873.77,0.00013698,2]
[380991396,1755930658233,-400.0,0.00013698,2]
[380991397,1755930658242,-1020.89,0.00013698,2]
[380991398,1755930658252,-718.17,0.00013698,2]
[380991399,1755930658262,-1397.26,0.00013698,2]
[380991400,1755930658275,-779.46,0.00013698,2]
[380991401,1755930658285,-400.0,0.00013698,2]
[380991402,1755930658295,-400.0,0.00013698,2]
[380991403,1755930658304,-400.0,0.00013698,2]
[380991404,1755930658315,-401.09289055,0.00013698,2]
[380991405,1755930658324,-1242.26,0.00013698,2]
[380991406,1755930658334,-659.51,0.00013698,2]
[380991407,1755930658345,-400.0,0.00013698,2]
[380991408,1755930658356,-400.0,0.00013698,2]
[380991409,1755930658366,-400.0,0.00013698,2]
[380991410,1755930658376,-389.83192814,0.00013698,2]
[380991411,1755930658386,-796.66,0.00013698,2]
[380991412,1755930658396,-402.59196928,0.00013698,2]
[380991413,1755930658406,-400.84161602,0.00013698,2]
[380991414,1755930658416,-401.6325133,0.00013698,2]
[380991415,1755930658426,-873.13,0.00013698,2]
[380991416,1755930658436,-400.0,0.00013698,2]
[380991417,1755930658445,-535.86,0.00013698,2]
[380991418,1755930658455,-400.0,0.00013698,2]
[380991419,1755930658465,-607.83,0.00013698,2]
[380991420,1755930658474,-400.0,0.00013698,2]
[380991421,1755930658484,-400.0,0.00013698,2]
[380991422,1755930658493,-401.41986197,0.00013698,2]
[380991423,1755930658503,-400.0,0.00013698,2]
[380991424,1755930658519,-593.25,0.00013698,2]
[380991425,1755930658528,-400.0,0.00013698,2]
[380991426,1755930658538,-643.58,0.00013698,2]
[380991427,1755930658547,-734.36,0.00013698,2]
[380991428,1755930658557,-590.01,0.00013698,2]
[380991429,1755930658567,-1009.14,0.00013698,2]
[380991430,1755930658576,-566.68,0.00013698,2]
[380991431,1755930658586,-752.12,0.00013698,2]
[380991432,1755930658596,-686.64,0.00013698,2]
[380991433,1755930658605,-821.45,0.00013698,2]
[380991434,1755930658615,-1020.13,0.00013698,2]
[380991435,1755930658624,-480.14834608,0.00013698,2]
[380991436,1755930658634,-400.0,0.00013698,2]
[380991437,1755930658643,-739.95,0.00013698,2]
[380991438,1755930658653,-331.32066352,0.00013698,2]
[380991439,1755930658663,-401.22626411,0.00013698,2]
[380991440,1755930658673,-400.0,0.00013698,2]
[380991441,1755930658683,-567.76,0.00013698,2]
[380991442,1755930658697,-749.2,0.00013698,2]
[380991443,1755930658718,-1008.59,0.00013698,2]
[380991444,1755930658734,-676.25,0.00013698,2]
[380991445,1755930658744,-1360.81,0.00013698,2]
[380991446,1755930658753,-400.0,0.00013698,2]
[380991447,1755930658763,-782.78,0.00013698,2]
[380991448,1755930658772,-761.24,0.00013698,2]
[380991449,1755930658782,-400.0,0.00013698,2]
[380991450,1755930658791,-512.32,0.00013698,2]
[380991451,1755930658801,-696.26,0.00013698,2]
[380991452,1755930658810,-1871.16,0.00013698,2]
[380991453,1755930658820,-400.0,0.00013698,2]
[380991454,1755930658829,-408.99,0.00013698,2]
[380991455,1755930658839,-401.93741075,0.00013698,2]
[380991456,1755930658849,-638.4,0.00013698,2]
[380991457,1755930658858,-491.72,0.00013698,2]
[380991458,1755930658867,-400.0,0.00013698,2]
[380991459,1755930658877,-400.0,0.00013698,2]
[380991460,1755930658887,-633.69,0.00013698,2]
[380991461,1755930658896,-718.67,0.00013698,2]
[380991462,1755930658905,-553.1,0.00013698,2]
[380991463,1755930658914,-400.0,0.00013698,2]
[380991464,1755930658923,-1307.02,0.00013698,2]
[380991465,1755930658933,-515.86,0.00013698,2]
[380991466,1755930658943,-807.4,0.00013698,2]
[380991467,1755930658952,-459.89,0.00013698,2]
[380991468,1755930658962,-1259.98,0.00013698,2]
[380991469,1755930658971,-620.72,0.00013698,2]
[380991470,1755930658981,-928.31,0.00013698,2]
[380991471,1755930658991,-2900.39,0.00013698,2]
[380991472,1755930659001,-405.54,0.00013698,2]
[380991473,1755930659010,-591.71,0.00013698,2]
[380991474,1755930659020,-494.42,0.00013698,2]
[380991475,1755930659030,-401.15546072,0.00013698,2]
[380991476,1755930659039,-400.0,0.00013698,2]
[380991477,1755930659049,-992.94,0.00013698,2]
[380991478,1755930659058,-416.70198926,0.00013698,2]
[380991479,1755930659068,-400.0,0.00013698,2]
[380991480,1755930659078,-734.9,0.00013698,2]
[380991481,1755930659087,-400.0,0.00013698,2]
[380991482,1755930659097,-400.0,0.00013698,2]
[380991483,1755930659107,-827.71,0.00013698,2]
[380991484,1755930659117,-400.0,0.00013698,2]
[380991485,1755930659127,-810.57,0.00013698,2]
[380991486,1755930659137,-400.35788675,0.00013698,2]
[380991487,1755930659146,-709.79,0.00013698,2]
[380991488,1755930659156,-931.49,0.00013698,2]
[380991489,1755930659166,-567.95,0.00013698,2]
[380991490,1755930659175,-3127.36,0.00013698,2]
[380991491,1755930659185,-372.91706575,0.00013698,2]
[380991492,1755930659195,-400.0,0.00013698,2]
[380991493,1755930659206,-624.47,0.00013698,2]
[380991494,1755930659215,-732.26,0.00013698,2]
[380991495,1755930659225,-400.32946024,0.00013698,2]
[380991496,1755930659235,-176.77039024,0.00013698,2]
[380991497,1755930659245,-400.0,0.00013698,2]
[380991498,1755930659254,-400.0,0.00013698,2]
[380991499,1755930659264,-400.0,0.00013698,2]
[380991500,1755930659276,-1299.81,0.00013698,2]
[380991501,1755930659286,-400.0,0.00013698,2]
[380991502,1755930659295,-427.22,0.00013698,2]
[380991503,1755930659306,-400.0,0.00013698,2]
[380991504,1755930659317,-400.0,0.00013698,2]
[380991505,1755930659411,-400.0,0.00013698,2]
[380991506,1755930659422,-400.0,0.00013698,2]
[380991507,1755930659432,-546.74,0.00013698,2]
[380991508,1755930659442,-400.0,0.00013698,2]
[380991509,1755930659451,-879.49,0.00013698,2]
[380991510,1755930659461,-400.0,0.00013698,2]
[380991511,1755930659470,-762.43,0.00013698,2]
[380991512,1755930659480,-400.0,0.00013698,2]
[380991513,1755930659489,-401.65949018,0.00013698,2]
[380991514,1755930659498,-542.83,0.00013698,2]
[380991515,1755930659508,-578.22,0.00013698,2]
[380991516,1755930659517,-992.2,0.00013698,2]
[380991517,1755930659526,-481.7,0.00013698,2]
[380991518,1755930659536,-552.32,0.00013698,2]
[380991519,1755930659545,-400.0,0.00013698,2]
[380991520,1755930659554,-717.03,0.00013698,2]
[380991521,1755930659563,-400.0,0.00013698,2]
[380991522,1755930659573,-401.89,0.00013698,2]
[380991523,1755930659582,-1000.0,0.00013698,2]
[380991524,1755930659592,-1114.08,0.00013698,2]
[380991525,1755930659601,-537.78862138,0.00013698,2]
[380991526,1755930659610,-400.0,0.00013698,2]
[380991527,1755930659620,-459.83,0.00013698,2]
[380991528,1755930659631,-593.29,0.00013698,2]
[380991529,1755930659647,-588.06,0.00013698,2]
[380991530,1755930659659,-400.0,0.00013698,2]
[380991531,1755930659668,-500.0,0.00013699,2]
[380991532,1755930659677,-500.0,0.00013699,2]
[380991533,1755930659686,-500.0,0.00013699,2]
[380991534,1755930659696,-3161.71,0.00013699,2]
[380991535,1755930659705,-1000.0,0.00013699,2]
[380991536,1755930659714,-200.0,0.00013699,2]
[380991537,1755930659725,-200.0,0.00013699,2]
[380991538,1755930659734,-200.0,0.00013699,2]
[380991539,1755930659743,-200.253743,0.00013699,2]
[380991540,1755930659752,-200.0,0.00013699,2]
[380991541,1755930659762,-398.87,0.00013699,2]
[380991542,1755930659771,-1000.0,0.00013699,2]
[380991543,1755930659781,-151.0,0.00013699,2]
[380991544,1755930659790,-151.0,0.00013699,2]
[380991545,1755930659799,-151.0,0.00013699,2]
[380991546,1755930659808,-151.0,0.00013699,2]
[380991547,1755930659818,-151.0,0.00013699,2]
[380991548,1755930659827,-151.0,0.00013699,2]
[380991549,1755930659836,-151.0,0.00013699,2]
[380991550,1755930659845,-151.0,0.00013699,2]
[380991551,1755930659854,-151.0,0.00013699,2]
[380991552,1755930659864,-151.0,0.00013699,2]
[380991553,1755930659873,-151.0,0.00013699,2]
[380991554,1755930659882,-151.0,0.00013699,2]
[380991555,1755930659891,-151.0,0.00013699,2]
[380991556,1755930659901,-151.0,0.00013699,2]
[380991557,1755930659911,-200.0,0.00013699,2]
[380991558,1755930659920,-200.0,0.00013699,2]
[380991559,1755930659929,-200.0,0.00013699,2]
[380991560,1755930659939,-200.0,0.00013699,2]
[380991561,1755930659948,-200.0,0.00013699,2]
[380991562,1755930659957,-200.0,0.00013699,2]
[380991563,1755930659966,-200.0,0.00013699,2]
[380991564,1755930659975,-200.0,0.00013699,2]
[380991565,1755930659984,-200.0,0.00013699,2]
[380991566,1755930659994,-200.0,0.00013699,2]
[380991567,1755930660003,-200.0,0.00013699,2]
[380991568,1755930660012,-200.0,0.00013699,2]
[380991569,1755930660021,-200.0,0.00013699,2]
[380991570,1755930660031,-200.0,0.00013699,2]
[380991571,1755930660040,-200.0,0.00013699,2]
[380991572,1755930660050,-200.0,0.00013699,2]
[380991573,1755930660060,-200.0,0.00013699,2]
[380991574,1755930660070,-200.869821,0.00013699,2]
[380991575,1755930660079,-151.0,0.00013699,2]
[380991576,1755930660089,-151.0,0.00013699,2]
[380991577,1755930660098,-151.0,0.00013699,2]
[380991578,1755930660107,-151.0,0.00013699,2]
[380991579,1755930660117,-151.0,0.00013699,2]
[380991580,1755930660128,-151.0,0.00013699,2]
[380991581,1755930660138,-152.886627,0.00013699,2]
[380991582,1755930660148,-380.458615,0.00013699,2]
[380991583,1755930660157,-380.458615,0.00013699,2]
[380991584,1755930660166,-380.458615,0.00013699,2]
[380991585,1755930660176,-380.458615,0.00013699,2]
[380991586,1755930660185,-380.458615,0.00013699,2]
[380991587,1755930660195,-380.458615,0.00013699,2]
[380991588,1755930660204,-380.458615,0.00013699,2]
[380991589,1755930660214,-380.458615,0.00013699,2]
[380991590,1755930660224,-380.458615,0.00013699,2]
[380991591,1755930660234,-380.458615,0.00013699,2]
[380991592,1755930660243,-380.458615,0.00013699,2]
[380991593,1755930660252,-380.458615,0.00013699,2]
[380991594,1755930660262,-380.458615,0.00013699,2]
[380991595,1755930660275,-380.458615,0.00013699,2]
[380991596,1755930660285,-380.458615,0.00013699,2]
[380991597,1755930660294,-380.458615,0.00013699,2]
[380991598,1755930660304,-380.458615,0.00013699,2]
[380991599,1755930660315,-380.458615,0.00013699,2]
[380991600,1755930660324,-380.458615,0.00013699,2]
[380991601,1755930660334,-380.458611,0.00013699,2]
[380991602,1755930660344,-151.0,0.00013699,2]
[380991603,1755930660353,-151.0,0.00013699,2]
[380991604,1755930660363,-151.0,0.00013699,2]
[380991605,1755930660372,-151.0,0.00013699,2]
[380991606,1755930660383,-151.0,0.00013699,2]
[380991607,1755930660393,-151.0,0.00013699,2]
[380991608,1755930660402,-151.0,0.00013699,2]
[380991609,1755930660412,-151.0,0.00013699,2]
[380991610,1755930660421,-151.0,0.00013699,2]
[380991611,1755930660431,-151.0,0.00013699,2]
[380991612,1755930660441,-151.0,0.00013699,2]
[380991613,1755930660450,-151.0,0.00013699,2]
[380991614,1755930660460,-151.062649,0.00013699,2]
[380991615,1755930660469,-1208.65,0.00013699,2]
[380991616,1755930660479,-672.05,0.00013699,2]
[380991617,1755930660488,-408.48,0.00013699,2]
[380991618,1755930660498,-408.48,0.00013699,2]
[380991619,1755930660508,-300.0,0.00013699,2]
[380991620,1755930660517,-150.0,0.00013699,2]
[380991621,1755930660526,-150.0,0.00013699,2]
[380991622,1755930660536,-96307.12,0.000137,2]
[380991623,1755930660546,-6366.18,0.000137,2]
[380991624,1755930660555,-6366.18,0.000137,2]
[380991625,1755930660565,-1330.58,0.000137,2]
[380991626,1755930660574,-150.0,0.00013701,2]
[380991627,1755930660584,-153.68,0.00013703,2]
[380991628,1755930660597,-150.0,0.00013712,2]
[380991629,1755930660607,-150.0,0.00013712,2]
[380991630,1755930660617,-3000.0,0.00013712,2]
[380991631,1755930660628,-937.96,0.00013713,2]
[380991632,1755930660637,-919.76,0.00013714,2]
[380991633,1755930660647,-150.0,0.00013722,2]
[380991634,1755930660656,-250.0,0.00013725,2]
[380991635,1755930660666,-150.0,0.00013725,2]
[380991636,1755930660674,-150.102,0.00013725,2]
[380991637,1755930660683,-203.482,0.00013725,2]
[380991638,1755930660693,-253.33,0.00013725,2]
[380991639,1755930660703,-250.0,0.00013725,2]
[380991640,1755930660714,-296.593,0.00013725,2]
[380991641,1755930660723,-250.0,0.00013725,2]
[380991642,1755930660733,-150.029,0.00013725,2]
[380991643,1755930660742,-150.0,0.00013725,2]
[380991644,1755930660751,-150.0,0.00013725,2]
[380991645,1755930660761,-150.088,0.00013725,2]
[380991646,1755930660770,-1343.0,0.00013733,2]
[380991647,1755930660779,-733.0,0.00013733,2]
[380991648,1755930660788,-631.46949788,0.00013733,2]
[380991649,1755930660798,-696.0,0.00013733,2]
[380991650,1755930660808,-736.0,0.00013733,2]
[380991651,1755930660817,-150.0,0.00013733,2]
[380991652,1755930660826,-150.0,0.00013733,2]
[380991653,1755930660836,-150.0,0.00013745,2]
[380991654,1755930660845,-150.0,0.00013745,2]
[380991655,1755930660855,-150.0,0.00013745,2]
[380991656,1755930660864,-150.0,0.0001376,2]
[380991657,1755930660875,-150.0,0.0001376,2]
[380991658,1755930660884,-150.0,0.00013768,2]
[380991659,1755930660894,-150.0,0.0001377,2]
[380991660,1755930660904,-611.14110187,0.00013777,2]
[380991661,1755930660914,-150.0,0.00013783,2]
[380991662,1755930660923,-150.0,0.00013783,2]
[380991663,1755930660932,-150.0,0.00013783,2]
[380991664,1755930660941,-150.0,0.00013783,2]
[380991665,1755930660951,-150.0,0.0001379,2]
[380991666,1755930660960,-150.0,0.00013802,2]
[380991667,1755930660969,-150.0,0.00013807,2]
[380991668,1755930660978,-150.0,0.00013807,2]
[380991669,1755930660988,-150.0,0.00013813,2]
[380991670,1755930660997,-150.0,0.00013818,2]
[380991671,1755930661006,-150.0,0.00013827,2]
[380991672,1755930661015,-150.0,0.00013827,2]
[380991673,1755930661025,-150.0,0.00013836,2]
[380991674,1755930661034,-150.0,0.00013844,2]
[380991675,1755930661044,-150.0,0.00013844,2]
[380991676,1755930661053,-150.0,0.00013853,2]
[380991677,1755930661063,-150.0,0.00013858,2]
[380991678,1755930661073,-150.0,0.00013858,2]
[380991679,1755930661083,-150.0,0.00013858,2]
[380991680,1755930661095,-150.0,0.00013865,2]
[380991681,1755930661104,-150.0,0.00013881,2]
[380991682,1755930661115,-150.0,0.00013881,2]
[380991683,1755930661125,-150.0,0.00013881,2]
[380991684,1755930661135,-150.0,0.00013895,2]
[380991685,1755930661145,-150.0,0.00013895,2]
[380991686,1755930661154,-201.43987033,0.000139,2]
[380991687,1755930661163,-736.0,0.00013901,2]
[380991688,1755930661172,-150.0,0.00013904,2]
[380991689,1755930661181,-150.0,0.00013915,2]
[380991690,1755930661190,-150.0,0.00013918,2]
[380991691,1755930661199,-150.0,0.00013923,2]
[380991692,1755930661208,-150.0,0.00013923,2]
[380991693,1755930661218,-150.0,0.00013927,2]
[380991694,1755930661227,-539.5,0.00013929,2]
[380991695,1755930661237,-347.34,0.00013929,2]
[380991696,1755930661247,-166.04,0.00013943,2]
[380991697,1755930661256,-150.0,0.00013947,2]
[380991698,1755930661265,-150.0,0.00013949,2]
[380991699,1755930661279,-823.0,0.00013953,2]
[380991700,1755930661288,-150.0,0.00013955,2]
[380991701,1755930661298,-150.0,0.00013955,2]
[380991702,1755930661307,-150.0,0.00013962,2]
[380991703,1755930661319,-150.0,0.00013962,2]
[380991704,1755930661328,-150.0,0.00013972,2]
[380991705,1755930661337,-150.0,0.00013972,2]
[380991706,1755930661348,-150.0,0.00013972,2]
[380991707,1755930661358,-276.93127765,0.00013972,2]
[380991708,1755930661368,-400.0,0.00013972,2]
[380991709,1755930661378,-400.65226085,0.00013972,2]
[380991710,1755930661388,-400.0,0.00013972,2]
[380991711,1755930661397,-402.29152902,0.00013972,2]
[380991712,1755930661407,-400.0,0.00013972,2]
[380991713,1755930661416,-400.0,0.00013972,2]
[380991714,1755930661425,-400.0,0.00013972,2]
[380991715,1755930661435,-400.0,0.00013972,2]
[380991716,1755930661445,-400.0,0.00013972,2]
[380991717,1755930661454,-400.0,0.00013972,2]
[380991718,1755930661464,-400.0,0.00013972,2]
[380991719,1755930661474,-400.0,0.00013972,2]
[380991720,1755930661483,-400.0,0.00013972,2]
[380991721,1755930661492,-400.0,0.00013972,2]
[380991722,1755930661502,-582.01,0.00013972,2]
[380991723,1755930661511,-514.56,0.00013972,2]
[380991724,1755930661521,-704.41,0.00013972,2]
[380991725,1755930661530,-1531.46,0.00013972,2]
[380991726,1755930661540,-400.0,0.00013972,2]
[380991727,1755930661550,-400.0,0.00013972,2]
[380991728,1755930661560,-400.0,0.00013972,2]
[380991729,1755930661570,-554.63,0.00013972,2]
[380991730,1755930661579,-877.84,0.00013972,2]
[380991731,1755930661589,-400.0,0.00013972,2]
[380991732,1755930661599,-643.74,0.00013972,2]
[380991733,1755930661608,-400.0,0.00013972,2]
[380991734,1755930661618,-402.01669196,0.00013972,2]
[380991735,1755930661629,-400.0,0.00013972,2]
[380991736,1755930661638,-400.0,0.00013972,2]
[380991737,1755930661647,-400.0,0.00013972,2]
[380991738,1755930661656,-403.06013476,0.00013972,2]
[380991739,1755930661666,-400.0,0.00013972,2]
[380991740,1755930661676,-402.57842928,0.00013972,2]
[380991741,1755930661685,-400.0,0.00013972,2]
[380991742,1755930661694,-400.0,0.00013972,2]
[380991743,1755930661704,-572.24,0.00013972,2]
[380991744,1755930661713,-400.0,0.00013972,2]
[380991745,1755930661722,-400.0,0.00013972,2]
[380991746,1755930661731,-400.0,0.00013972,2]
[380991747,1755930661740,-400.0,0.00013972,2]
[380991748,1755930661750,-432.51936995,0.00013972,2]
[380991749,1755930661760,-400.0,0.00013972,2]
[380991750,1755930661769,-743.91,0.00013972,2]
[380991751,1755930661778,-400.0,0.00013972,2]
[380991752,1755930661788,-526.46,0.00013972,2]
[380991753,1755930661797,-400.0,0.00013972,2]
[380991754,1755930661807,-400.0,0.00013972,2]
[380991755,1755930661817,-400.0,0.00013972,2]
[380991756,1755930661826,-400.0,0.00013972,2]
[380991757,1755930661836,-400.0,0.00013972,2]
[380991758,1755930661845,-400.0,0.00013972,2]
[380991759,1755930661855,-400.0,0.00013972,2]
[380991760,1755930661864,-400.63166369,0.00013972,2]
[380991761,1755930661874,-400.0,0.00013972,2]
[380991762,1755930661884,-749.52,0.00013972,2]
[380991763,1755930661893,-400.0,0.00013972,2]
[380991764,1755930661903,-400.0,0.00013972,2]
[380991765,1755930661912,-540.59,0.00013972,2]
[380991766,1755930661922,-410.49,0.00013972,2]
[380991767,1755930661931,-400.0,0.00013972,2]
[380991768,1755930661942,-400.0,0.00013972,2]
[380991769,1755930661951,-493.14,0.00013972,2]
[380991770,1755930661960,-437.89324797,0.00013972,2]
[380991771,1755930661969,-400.0,0.00013972,2]
[380991772,1755930661978,-400.0,0.00013972,2]
[380991773,1755930661988,-920.84,0.00013972,2]
[380991774,1755930661997,-400.0,0.00013972,2]
[380991775,1755930662007,-400.0,0.00013972,2]
[380991776,1755930662017,-400.0,0.00013972,2]
[380991777,1755930662027,-566.63,0.00013972,2]
[380991778,1755930662037,-400.0,0.00013972,2]
[380991779,1755930662047,-432.17,0.00013972,2]
[380991780,1755930662056,-400.0,0.00013972,2]
[380991781,1755930662066,-401.21801167,0.00013972,2]
[380991782,1755930662076,-740.84,0.00013972,2]
[380991783,1755930662086,-783.8,0.00013972,2]
[380991784,1755930662095,-400.0,0.00013972,2]
[380991785,1755930662105,-517.07,0.00013972,2]
[380991786,1755930662115,-604.31,0.00013972,2]
[380991787,1755930662127,-1133.06,0.00013972,2]
[380991788,1755930662138,-400.0,0.00013972,2]
[380991789,1755930662147,-495.74,0.00013972,2]
[380991790,1755930662157,-400.0,0.00013972,2]
[380991791,1755930662167,-400.0,0.00013972,2]
[380991792,1755930662177,-400.0,0.00013972,2]
[380991793,1755930662186,-413.56,0.00013972,2]
[380991794,1755930662196,-400.0,0.00013972,2]
[380991795,1755930662206,-400.0,0.00013972,2]
[380991796,1755930662215,-400.0,0.00013972,2]
[380991797,1755930662226,-401.73419106,0.00013972,2]
[380991798,1755930662236,-400.0,0.00013972,2]
[380991799,1755930662245,-400.0,0.00013972,2]
[380991800,1755930662255,-400.0,0.00013972,2]
[380991801,1755930662265,-400.0,0.00013972,2]
[380991802,1755930662278,-400.0,0.00013972,2]
[380991803,1755930662289,-696.19,0.00013972,2]
[380991804,1755930662299,-448.63,0.00013972,2]
[380991805,1755930662310,-409.77,0.00013972,2]
[380991806,1755930662322,-400.0,0.00013972,2]
[380991807,1755930662332,-400.0,0.00013972,2]
[380991808,1755930662342,-402.96979918,0.00013972,2]